fUSD/lending_fUSD_20250126
["ID","MTS","AMOUNT","RATE_DAILY","PERIOD"]
[350474772,1737910273814,-1005.96,0.00011598,2]
[350474773,1737910273824,-874.76,0.00011598,2]
[350474774,1737910273833,-500.0,0.00011598,2]
[350474775,1737910273843,-812.99,0.00011599,2]
[350474776,1737910273852,-500.0,0.00011599,2]
[350474777,1737910273861,-632.9423554,0.00011599,2]
[350474778,1737910273870,-500.0,0.00011599,2]
[350474779,1737910273880,-500.0,0.00011599,2]
[350474780,1737910273889,-550.9,0.00011599,2]
[350474781,1737910273898,-500.0,0.00011599,2]
[350474782,1737910273908,-500.0,0.00011599,2]
[350474783,1737910273918,-500.0,0.00011599,2]
[350474784,1737910273927,-514.21,0.00011599,2]
[350474785,1737910273937,-500.0,0.00011599,2]
[350474786,1737910273947,-500.0,0.00011599,2]
[350474787,1737910273956,-500.0,0.00011599,2]
[350474788,1737910273965,-500.0,0.00011599,2]
[350474789,1737910273975,-500.0,0.00011599,2]
[350474790,1737910273985,-649.79,0.00011599,2]
[350474791,1737910273994,-500.0,0.00011599,2]
[350474792,1737910274005,-500.0,0.00011599,2]
[350474793,1737910274014,-500.0,0.00011599,2]
[350474794,1737910274023,-500.0,0.00011599,2]
[350474795,1737910274033,-649.83,0.00011599,2]
[350474796,1737910274042,-500.0,0.00011599,2]
[350474797,1737910274051,-500.0,0.00011599,2]
[350474798,1737910274060,-593.51,0.00011599,2]
[350474799,1737910274070,-500.0,0.00011599,2]
[350474800,1737910274080,-500.0,0.00011599,2]
[350474801,1737910274089,-500.0,0.00011599,2]
[350474802,1737910274099,-500.0,0.00011599,2]
[350474803,1737910274108,-500.0,0.00011599,2]
[350474804,1737910274117,-500.0,0.00011599,2]
[350474805,1737910274126,-500.0,0.00011599,2]
[350474806,1737910274135,-500.0,0.00011599,2]
[350474807,1737910274144,-500.0,0.00011599,2]
[350474808,1737910274153,-500.0,0.00011599,2]
[350474809,1737910274162,-500.0,0.00011599,2]
[350474810,1737910274171,-500.0,0.00011599,2]
[350474811,1737910274181,-500.0,0.00011599,2]
[350474812,1737910274190,-572.45,0.00011599,2]
[350474813,1737910274199,-500.0,0.00011599,2]
[350474814,1737910274208,-500.0,0.00011599,2]
[350474815,1737910274217,-500.0,0.00011599,2]
[350474816,1737910274226,-500.0,0.00011599,2]
[350474817,1737910274235,-323.24797508,0.00011599,2]
[350474818,1737910274245,-500.0,0.00011599,2]
[350474819,1737910274254,-500.0,0.00011599,2]
[350474820,1737910274262,-500.0,0.00011599,2]
[350474821,1737910274271,-660.99,0.00011599,2]
[350474822,1737910274279,-500.0,0.00011599,2]
[350474823,1737910274288,-500.0,0.00011599,2]
[350474824,1737910274298,-500.0,0.00011599,2]
[350474825,1737910274306,-500.0,0.00011599,2]
[350474826,1737910274319,-500.0,0.00011599,2]
[350474827,1737910274329,-500.0,0.00011599,2]
[350474828,1737910274342,-500.0,0.00011599,2]
[350474829,1737910274351,-990.8,0.00011599,2]
[350474830,1737910274361,-500.0,0.00011599,2]
[350474831,1737910274370,-500.0,0.00011599,2]
[350474832,1737910274381,-500.0,0.00011599,2]
[350474833,1737910274390,-500.0,0.00011599,2]
[350474834,1737910274399,-500.0,0.00011599,2]
[350474835,1737910274409,-500.0,0.00011599,2]
[350474836,1737910274421,-500.0,0.00011599,2]
[350474837,1737910274431,-500.0,0.00011599,2]
[350474838,1737910274440,-500.0,0.00011599,2]
[350474839,1737910274449,-500.0,0.00011599,2]
[350474840,1737910274459,-500.0,0.00011599,2]
[350474841,1737910274469,-569.6,0.00011599,2]
[350474842,1737910274479,-500.0,0.00011599,2]
[350474843,1737910274488,-500.0,0.00011599,2]
[350474844,1737910274498,-500.0,0.00011599,2]
[350474845,1737910274508,-500.0,0.00011599,2]
[350474846,1737910274517,-500.0,0.00011599,2]
[350474847,1737910274527,-500.0,0.00011599,2]
[350474848,1737910274536,-500.0,0.00011599,2]
[350474849,1737910274545,-500.0,0.00011599,2]
[350474850,1737910274555,-313.83135903,0.00011599,2]
[350474851,1737910274565,-500.0,0.00011599,2]
[350474852,1737910274705,-500.0,0.00011599,2]
[350474853,1737910274715,-695.57,0.00011599,2]
[350474854,1737910274725,-500.0,0.00011599,2]
[350474855,1737910274734,-1617.35,0.00011599,2]
[350474856,1737910274743,-685.664976,0.00011599,2]
[350474857,1737910274753,-933.16,0.00011599,2]
[350474858,1737910274762,-500.0,0.00011599,2]
[350474859,1737910274772,-500.0,0.00011599,2]
[350474860,1737910274781,-500.0,0.00011599,2]
[350474861,1737910274791,-4057.54,0.00011599,2]
[350474862,1737910274801,-500.0,0.00011599,2]
[350474863,1737910274810,-742.47,0.00011599,2]
[350474864,1737910274821,-500.0,0.00011599,2]
[350474865,1737910274830,-1494.41,0.00011599,2]
[350474866,1737910274839,-782.508992,0.00011599,2]
[350474867,1737910274848,-500.0,0.00011599,2]
[350474868,1737910274857,-623.71,0.00011599,2]
[350474869,1737910274867,-2263.44,0.00011599,2]
[350474870,1737910274876,-634.42,0.00011599,2]
[350474871,1737910274886,-500.0,0.00011599,2]
[350474872,1737910274895,-910.78,0.00011599,2]
[350474873,1737910274904,-500.0,0.00011599,2]
[350474874,1737910274913,-500.0,0.00011599,2]
[350474875,1737910274923,-3241.44,0.00011599,2]
[350474876,1737910274932,-1792.48,0.00011599,2]
[350474877,1737910274942,-500.0,0.00011599,2]
[350474878,1737910274951,-746.39,0.00011599,2]
[350474879,1737910274961,-1471.07,0.00011599,2]
[350474880,1737910274970,-500.0,0.00011599,2]
[350474881,1737910274981,-500.0,0.00011599,2]
[350474882,1737910274990,-686.99,0.00011599,2]
[350474883,1737910274999,-500.0,0.00011599,2]
[350474884,1737910275009,-640.38,0.00011599,2]
[350474885,1737910275018,-6642.79,0.00011599,2]
[350474886,1737910275028,-2600.48,0.00011599,2]
[350474887,1737910275038,-1881.15,0.00011599,2]
[350474888,1737910275048,-500.0,0.00011599,2]
[350474889,1737910275057,-3862.26,0.00011599,2]
[350474890,1737910275068,-500.0,0.00011599,2]
[350474891,1737910275077,-1664.75,0.00011599,2]
[350474892,1737910275087,-500.0,0.00011599,2]
[350474893,1737910275096,-500.0,0.00011599,2]
[350474894,1737910275105,-853.26,0.00011599,2]
[350474895,1737910275115,-3467.21,0.00011599,2]
[350474896,1737910275124,-500.0,0.00011599,2]
[350474897,1737910275133,-664.59,0.00011599,2]
[350474898,1737910275143,-2461.37,0.00011599,2]
[350474899,1737910275152,-500.0,0.00011599,2]
[350474900,1737910275162,-2677.48,0.00011599,2]
[350474901,1737910275171,-1269.1,0.00011599,2]
[350474902,1737910275181,-666.82,0.00011599,2]
[350474903,1737910275190,-3647.79,0.00011599,2]
[350474904,1737910275199,-500.0,0.00011599,2]
[350474905,1737910275209,-614.07,0.00011599,2]
[350474906,1737910275218,-3979.91,0.00011599,2]
[350474907,1737910275227,-500.0,0.00011599,2]
[350474908,1737910275236,-2995.73,0.00011599,2]
[350474909,1737910275246,-500.0,0.00011599,2]
[350474910,1737910275255,-500.0,0.00011599,2]
[350474911,1737910275265,-500.0,0.00011599,2]
[350474912,1737910275274,-500.0,0.00011599,2]
[350474913,1737910275283,-1275.01,0.00011599,2]
[350474914,1737910275293,-2161.69,0.00011599,2]
[350474915,1737910275302,-500.0,0.00011599,2]
[350474916,1737910275311,-2119.23,0.00011599,2]
[350474917,1737910275324,-3239.44,0.00011599,2]
[350474918,1737910275334,-1741.27,0.00011599,2]
[350474919,1737910275345,-1345.26,0.00011599,2]
[350474920,1737910275355,-500.0,0.00011599,2]
[350474921,1737910275364,-1174.6,0.00011599,2]
[350474922,1737910275373,-511.57,0.00011599,2]
[350474923,1737910275383,-2109.46,0.00011599,2]
[350474924,1737910275392,-1059.73,0.00011599,2]
[350474925,1737910275402,-500.0,0.00011599,2]
[350474926,1737910275411,-736.04,0.00011599,2]
[350474927,1737910275421,-1132.8,0.00011599,2]
[350474928,1737910275430,-1470.78,0.00011599,2]
[350474929,1737910275439,-610.6,0.00011599,2]
[350474930,1737910275449,-2773.27,0.00011599,2]
[350474931,1737910275458,-1335.48,0.00011599,2]
[350474932,1737910275467,-2467.06,0.00011599,2]
[350474933,1737910275477,-500.0,0.00011599,2]
[350474934,1737910275486,-1724.68,0.00011599,2]
[350474935,1737910275496,-665.26,0.00011599,2]
[350474936,1737910275505,-1050.22,0.00011599,2]
[350474937,1737910275515,-1859.08,0.00011599,2]
[350474938,1737910275524,-500.0,0.00011599,2]
[350474939,1737910275534,-2946.65,0.00011599,2]
[350474940,1737910275543,-1809.21,0.00011599,2]
[350474941,1737910275552,-3886.08,0.00011599,2]
[350474942,1737910275561,-580.65,0.00011599,2]
[350474943,1737910275573,-500.0,0.00011599,2]
[350474944,1737910275583,-500.0,0.00011599,2]
[350474945,1737910275592,-6555.88,0.00011599,2]
[350474946,1737910275602,-500.0,0.00011599,2]
[350474947,1737910275611,-703.83,0.00011599,2]
[350474948,1737910275620,-300.0,0.00011599,2]
[350474949,1737910275631,-300.0,0.00011599,2]
[350474950,1737910275642,-300.0,0.00011599,2]
[350474951,1737910275651,-300.0,0.00011599,2]
[350474952,1737910275660,-300.0,0.00011599,2]
[350474953,1737910275669,-300.0,0.00011599,2]
[350474954,1737910275678,-300.0,0.00011599,2]
[350474955,1737910275687,-300.0,0.00011599,2]
[350474956,1737910275699,-300.0,0.00011599,2]
[350474957,1737910275709,-132259.66292825,0.000116,2]
[350474958,1737910275718,-500.0,0.000116,4]
[350474959,1737910275727,-1414.09,0.00011605,2]
[350474960,1737910275736,-500.0,0.00011605,2]
[350474961,1737910275745,-643.21,0.00011605,2]
[350474962,1737910275755,-1931.14,0.00011605,2]
[350474963,1737910275764,-1878.22,0.00011605,2]
[350474964,1737910275773,-3529.1,0.00011605,2]
[350474965,1737910275783,-2452.03,0.00011605,2]
[350474966,1737910275792,-1579.48,0.00011605,2]
[350474967,1737910275802,-5248.09,0.00011605,2]
[350474968,1737910275811,-1410.82,0.00011605,2]
[350474969,1737910275824,-500.0,0.00011605,2]
[350474970,1737910275834,-1005.96,0.00011605,2]
[350474971,1737910275843,-874.76,0.00011605,2]
[350474972,1737910275854,-675.0,0.00011606,2]
[350474973,1737910275863,-500.0,0.00011621,2]
[350474974,1737910275873,-500.0,0.00011621,2]
[350474975,1737910275883,-300.0,0.00011621,2]
[350474976,1737910275892,-300.0,0.00011621,2]
[350474977,1737910275903,-300.0,0.00011621,2]
[350474978,1737910275912,-300.0,0.00011621,2]
[350474979,1737910275922,-300.0,0.00011621,2]
[350474980,1737910275932,-300.0,0.00011621,2]
[350474981,1737910275942,-300.0,0.00011621,2]
[350474982,1737910275952,-300.0,0.00011621,2]
[350474983,1737910275964,-174.67658558,0.00011621,2]
[350474984,1737910275974,-500.0,0.00011622,2]
[350474985,1737910275984,-695.57,0.00011622,2]
[350474986,1737910275994,-1617.35,0.00011622,2]
[350474987,1737910276004,-933.16,0.00011622,2]
[350474988,1737910276015,-685.664976,0.00011622,2]
[350474989,1737910276024,-665.95,0.00011622,2]
[350474990,1737910276035,-500.0,0.00011622,2]
[350474991,1737910276045,-500.0,0.00011622,2]
[350474992,1737910276055,-500.0,0.00011622,2]
[350474993,1737910276064,-782.508992,0.00011622,2]
[350474994,1737910276076,-500.0,0.00011622,2]
[350474995,1737910276087,-623.71,0.00011622,2]
[350474996,1737910276097,-500.0,0.00011622,2]
[350474997,1737910276107,-653.68,0.00011622,2]
[350474998,1737910276117,-634.42,0.00011622,2]
[350474999,1737910276126,-500.0,0.00011622,2]
[350475000,1737910276136,-945.5,0.00011622,2]
[350475001,1737910276146,-1792.48,0.00011622,2]
[350475002,1737910276156,-169.128489,0.00011622,2]
[350475003,1737910276165,-1471.07,0.00011622,2]
[350475004,1737910276175,-991.48,0.00011622,2]
[350475005,1737910276184,-500.0,0.00011622,2]
[350475006,1737910276194,-686.99,0.00011622,2]
[350475007,1737910276203,-2600.48,0.00011622,2]
[350475008,1737910276212,-1881.15,0.00011622,2]
[350475009,1737910276222,-1000.0,0.00011622,2]
[350475010,1737910276232,-590.8,0.00011622,2]
[350475011,1737910276241,-1664.75,0.00011622,2]
[350475012,1737910276251,-500.0,0.00011622,2]
[350475013,1737910276260,-664.59,0.00011622,2]
[350475014,1737910276269,-500.0,0.00011622,2]
[350475015,1737910276279,-2461.37,0.00011622,2]
[350475016,1737910276289,-1903.53,0.00011622,2]
[350475017,1737910276299,-2677.48,0.00011622,2]
[350475018,1737910276309,-1269.1,0.00011622,2]
[350475019,1737910276321,-3647.79,0.00011622,2]
[350475020,1737910276331,-3321.8,0.00011622,2]
[350475021,1737910276342,-614.07,0.00011622,2]
[350475022,1737910276353,-3979.91,0.00011622,2]
[350475023,1737910276363,-2995.73,0.00011622,2]
[350475024,1737910276372,-500.0,0.00011622,2]
[350475025,1737910276383,-1275.01,0.00011622,2]
[350475026,1737910276393,-2161.69,0.00011622,2]
[350475027,1737910276403,-3239.44,0.00011622,2]
[350475028,1737910276413,-1174.6,0.00011622,2]
[350475029,1737910276426,-500.0,0.00011622,2]
[350475030,1737910276436,-169.128487,0.00011622,2]
[350475031,1737910276446,-736.04,0.00011622,2]
[350475032,1737910276456,-1470.78,0.00011622,2]
[350475033,1737910276465,-1335.48,0.00011622,2]
[350475034,1737910276475,-2467.06,0.00011622,2]
[350475035,1737910276485,-500.0,0.00011622,2]
[350475036,1737910276494,-665.26,0.00011622,2]
[350475037,1737910276504,-1050.22,0.00011622,2]
[350475038,1737910276515,-2946.65,0.00011622,2]
[350475039,1737910276525,-1809.21,0.00011622,2]
[350475040,1737910276534,-500.0,0.00011622,2]
[350475041,1737910276544,-703.83,0.00011622,2]
[350475042,1737910276554,-500.0,0.00011633,2]
[350475043,1737910276563,-500.0,0.00011633,2]
[350475044,1737910276576,-500.0,0.00011633,2]
[350475045,1737910276585,-500.0,0.00011633,2]
[350475046,1737910276595,-500.0,0.00011633,2]
[350475047,1737910276605,-500.0,0.00011633,2]
[350475048,1737910276614,-500.0,0.00011633,2]
[350475049,1737910276623,-500.0,0.00011633,2]
[350475050,1737910276633,-500.0,0.00011633,2]
[350475051,1737910276642,-500.0,0.00011633,2]
[350475052,1737910276652,-500.0,0.00011633,2]
[350475053,1737910276662,-532.40805573,0.00011633,2]
[350475054,1737910276671,-572.45,0.00011633,2]
[350475055,1737910276680,-500.0,0.00011633,2]
[350475056,1737910276690,-500.0,0.00011633,2]
[350475057,1737910276699,-500.0,0.00011633,2]
[350475058,1737910276708,-660.99,0.00011633,2]
[350475059,1737910276717,-500.0,0.00011633,2]
[350475060,1737910276726,-500.0,0.00011633,2]
[350475061,1737910276737,-500.0,0.00011633,2]
[350475062,1737910276746,-500.0,0.00011633,2]
[350475063,1737910276755,-990.8,0.00011633,2]
[350475064,1737910276765,-500.0,0.00011633,2]
[350475065,1737910276774,-500.0,0.00011633,2]
[350475066,1737910276783,-500.0,0.00011633,2]
[350475067,1737910276793,-500.0,0.00011633,2]
[350475068,1737910276802,-500.0,0.00011633,2]
[350475069,1737910276812,-500.0,0.00011633,2]
[350475070,1737910276825,-500.0,0.00011633,2]
[350475071,1737910276834,-500.0,0.00011633,2]
[350475072,1737910276844,-500.0,0.00011633,2]
[350475073,1737910276854,-500.0,0.00011633,2]
[350475074,1737910276864,-500.0,0.00011633,2]
[350475075,1737910276874,-500.0,0.00011633,2]
[350475076,1737910276883,-500.0,0.00011633,2]
[350475077,1737910276893,-500.0,0.00011633,2]
[350475078,1737910276903,-500.0,0.00011633,2]
[350475079,1737910276913,-4057.54,0.00011633,2]
[350475080,1737910276923,-742.47,0.00011633,2]
[350475081,1737910276932,-1494.41,0.00011633,2]
[350475082,1737910276941,-2263.44,0.00011633,2]
[350475083,1737910276951,-500.0,0.00011633,2]
[350475084,1737910276961,-910.78,0.00011633,2]
[350475085,1737910276970,-500.0,0.00011633,2]
[350475086,1737910276979,-3241.44,0.00011633,2]
[350475087,1737910276988,-500.0,0.00011633,2]
[350475088,1737910276998,-746.39,0.00011633,2]
[350475089,1737910277008,-500.0,0.00011633,2]
[350475090,1737910277017,-500.0,0.00011633,2]
[350475091,1737910277027,-640.38,0.00011633,2]
[350475092,1737910277036,-6642.79,0.00011633,2]
[350475093,1737910277046,-3862.26,0.00011633,2]
[350475094,1737910277056,-500.0,0.00011633,2]
[350475095,1737910277066,-500.0,0.00011633,2]
[350475096,1737910277076,-500.0,0.00011633,2]
[350475097,1737910277086,-500.0,0.00011633,2]
[350475098,1737910277095,-853.26,0.00011633,2]
[350475099,1737910277105,-3467.21,0.00011633,2]
[350475100,1737910277115,-500.0,0.00011633,2]
[350475101,1737910277124,-1414.09,0.00011633,2]
[350475102,1737910277267,-666.82,0.00011633,2]
[350475103,1737910277277,-500.0,0.00011633,2]
[350475104,1737910277287,-500.0,0.00011633,2]
[350475105,1737910277296,-500.0,0.00011633,2]
[350475106,1737910277306,-643.21,0.00011633,2]
[350475107,1737910277316,-500.0,0.00011633,2]
[350475108,1737910277325,-500.0,0.00011633,2]
[350475109,1737910277335,-500.0,0.00011633,2]
[350475110,1737910277346,-1931.14,0.00011633,2]
[350475111,1737910277357,-500.0,0.00011633,2]
[350475112,1737910277366,-2119.23,0.00011633,2]
[350475113,1737910277377,-1878.22,0.00011633,2]
[350475114,1737910277386,-1741.27,0.00011633,2]
[350475115,1737910277396,-1345.26,0.00011633,2]
[350475116,1737910277406,-500.0,0.00011633,2]
[350475117,1737910277416,-3529.1,0.00011633,2]
[350475118,1737910277426,-511.57,0.00011633,2]
[350475119,1737910277435,-2109.46,0.00011633,2]
[350475120,1737910277446,-1059.73,0.00011633,2]
[350475121,1737910277456,-2452.03,0.00011633,2]
[350475122,1737910277466,-1132.8,0.00011633,2]
[350475123,1737910277475,-1579.48,0.00011633,2]
[350475124,1737910277485,-610.6,0.00011633,2]
[350475125,1737910277494,-2773.27,0.00011633,2]
[350475126,1737910277504,-5248.09,0.00011633,2]
[350475127,1737910277514,-500.0,0.00011633,2]
[350475128,1737910277523,-1724.68,0.00011633,2]
[350475129,1737910277533,-1410.82,0.00011633,2]
[350475130,1737910277542,-500.0,0.00011633,2]
[350475131,1737910277552,-1859.08,0.00011633,2]
[350475132,1737910277562,-500.0,0.00011633,2]
[350475133,1737910277572,-1005.96,0.00011633,2]
[350475134,1737910277582,-3886.08,0.00011633,2]
[350475135,1737910277592,-580.65,0.00011633,2]
[350475136,1737910277601,-500.0,0.00011633,2]
[350475137,1737910277611,-874.76,0.00011633,2]
[350475138,1737910277621,-6555.88,0.00011633,2]
[350475139,1737910277630,-500.0,0.00011633,2]
[350475140,1737910277639,-500.0,0.00011634,2]
[350475141,1737910277648,-695.57,0.00011634,2]
[350475142,1737910277658,-1617.35,0.00011634,2]
[350475143,1737910277669,-933.16,0.00011634,2]
[350475144,1737910277679,-685.664976,0.00011634,2]
[350475145,1737910277689,-665.95,0.00011634,2]
[350475146,1737910277698,-269.92,0.00011634,2]
[350475147,1737910277708,-500.0,0.00011634,2]
[350475148,1737910277717,-500.0,0.00011634,2]
[350475149,1737910277727,-782.508992,0.00011634,2]
[350475150,1737910277736,-500.0,0.00011634,2]
[350475151,1737910277745,-623.71,0.00011634,2]
[350475152,1737910277755,-500.0,0.00011634,2]
[350475153,1737910277765,-653.68,0.00011634,2]
[350475154,1737910277775,-634.42,0.00011634,2]
[350475155,1737910277784,-500.0,0.00011634,2]
[350475156,1737910277793,-945.5,0.00011634,2]
[350475157,1737910277803,-1792.48,0.00011634,2]
[350475158,1737910277813,-1471.07,0.00011634,2]
[350475159,1737910277826,-991.48,0.00011634,2]
[350475160,1737910277836,-500.0,0.00011634,2]
[350475161,1737910277845,-686.99,0.00011634,2]
[350475162,1737910277855,-2600.48,0.00011634,2]
[350475163,1737910277864,-1881.15,0.00011634,2]
[350475164,1737910277874,-1000.0,0.00011634,2]
[350475165,1737910277884,-590.8,0.00011634,2]
[350475166,1737910277894,-1664.75,0.00011634,2]
[350475167,1737910277903,-500.0,0.00011634,2]
[350475168,1737910277913,-664.59,0.00011634,2]
[350475169,1737910277923,-500.0,0.00011634,2]
[350475170,1737910277932,-2461.37,0.00011634,2]
[350475171,1737910277941,-1903.53,0.00011634,2]
[350475172,1737910277951,-2677.48,0.00011634,2]
[350475173,1737910277962,-1269.1,0.00011634,2]
[350475174,1737910277971,-3647.79,0.00011634,2]
[350475175,1737910277980,-3321.8,0.00011634,2]
[350475176,1737910277990,-614.07,0.00011634,2]
[350475177,1737910278000,-3979.91,0.00011634,2]
[350475178,1737910278010,-2995.73,0.00011634,2]
[350475179,1737910278020,-500.0,0.00011634,2]
[350475180,1737910278029,-1275.01,0.00011634,2]
[350475181,1737910278039,-2161.69,0.00011634,2]
[350475182,1737910278049,-3239.44,0.00011634,2]
[350475183,1737910278059,-1174.6,0.00011634,2]
[350475184,1737910278070,-500.0,0.00011634,2]
[350475185,1737910278081,-736.04,0.00011634,2]
[350475186,1737910278091,-1470.78,0.00011634,2]
[350475187,1737910278101,-1335.48,0.00011634,2]
[350475188,1737910278110,-2467.06,0.00011634,2]
[350475189,1737910278120,-500.0,0.00011634,2]
[350475190,1737910278130,-665.26,0.00011634,2]
[350475191,1737910278140,-1050.22,0.00011634,2]
[350475192,1737910278150,-2946.65,0.00011634,2]
[350475193,1737910278160,-1809.21,0.00011634,2]
[350475194,1737910278170,-500.0,0.00011634,2]
[350475195,1737910278179,-703.83,0.00011634,2]
[350475196,1737910278189,-500.0,0.00011635,2]
[350475197,1737910278198,-500.0,0.00011635,2]
[350475198,1737910278208,-342.93,0.00011635,2]
[350475199,1737910278217,-500.0,0.00011635,2]
[350475200,1737910278227,-566.48,0.00011635,2]
[350475201,1737910278236,-500.0,0.00011635,2]
[350475202,1737910278246,-500.0,0.00011635,2]
[350475203,1737910278255,-500.0,0.00011635,2]
[350475204,1737910278265,-500.0,0.00011635,2]
[350475205,1737910278275,-500.0,0.00011635,2]
[350475206,1737910278286,-500.0,0.00011635,2]
[350475207,1737910278296,-500.0,0.00011635,2]
[350475208,1737910278306,-500.0,0.00011635,2]
[350475209,1737910278316,-500.0,0.00011635,2]
[350475210,1737910278326,-550.9,0.00011635,2]
[350475211,1737910278335,-550.9,0.00011635,2]
[350475212,1737910278348,-550.9,0.00011635,2]
[350475213,1737910278357,-550.9,0.00011635,2]
[350475214,1737910278366,-550.9,0.00011635,2]
[350475215,1737910278376,-550.9,0.00011635,2]
[350475216,1737910278386,-550.9,0.00011635,2]
[350475217,1737910278395,-550.9,0.00011635,2]
[350475218,1737910278405,-550.9,0.00011635,2]
[350475219,1737910278416,-500.0,0.00011635,2]
[350475220,1737910278425,-500.0,0.00011635,2]
[350475221,1737910278435,-500.0,0.00011635,2]
[350475222,1737910278444,-500.0,0.00011635,2]
[350475223,1737910278454,-500.0,0.00011635,2]
[350475224,1737910278468,-500.0,0.00011635,2]
[350475225,1737910278477,-500.0,0.00011635,2]
[350475226,1737910278486,-500.0,0.00011635,2]
[350475227,1737910278495,-292.0,0.00011635,2]
[350475228,1737910278504,-500.0,0.00011635,2]
[350475229,1737910278514,-500.0,0.00011635,2]
[350475230,1737910278523,-500.0,0.00011635,2]
[350475231,1737910278533,-500.0,0.00011635,2]
[350475232,1737910278542,-500.0,0.00011635,2]
[350475233,1737910278551,-649.79,0.00011635,2]
[350475234,1737910278560,-649.79,0.00011635,2]
[350475235,1737910278572,-649.79,0.00011635,2]
[350475236,1737910278581,-649.79,0.00011635,2]
[350475237,1737910278590,-649.79,0.00011635,2]
[350475238,1737910278599,-649.79,0.00011635,2]
[350475239,1737910278609,-649.79,0.00011635,2]
[350475240,1737910278619,-649.79,0.00011635,2]
[350475241,1737910278628,-649.79,0.00011635,2]
[350475242,1737910278638,-500.0,0.00011635,2]
[350475243,1737910278648,-500.0,0.00011635,2]
[350475244,1737910278659,-500.0,0.00011635,2]
[350475245,1737910278669,-500.0,0.00011635,2]
[350475246,1737910278678,-500.0,0.00011635,2]
[350475247,1737910278688,-500.0,0.00011635,2]
[350475248,1737910278697,-500.0,0.00011635,2]
[350475249,1737910278706,-500.0,0.00011635,2]
[350475250,1737910278716,-500.0,0.00011635,2]
[350475251,1737910278726,-649.83,0.00011635,2]
[350475252,1737910278736,-649.83,0.00011635,2]
[350475253,1737910278745,-649.83,0.00011635,2]
[350475254,1737910278755,-649.83,0.00011635,2]
[350475255,1737910278765,-649.83,0.00011635,2]
[350475256,1737910278775,-649.83,0.00011635,2]
[350475257,1737910278785,-649.83,0.00011635,2]
[350475258,1737910278794,-649.83,0.00011635,2]
[350475259,1737910278804,-649.83,0.00011635,2]
[350475260,1737910278814,-593.51,0.00011635,2]
[350475261,1737910278827,-593.51,0.00011635,2]
[350475262,1737910278837,-593.51,0.00011635,2]
[350475263,1737910278847,-593.51,0.00011635,2]
[350475264,1737910278857,-593.51,0.00011635,2]
[350475265,1737910278868,-593.51,0.00011635,2]
[350475266,1737910278878,-593.51,0.00011635,2]
[350475267,1737910278888,-593.51,0.00011635,2]
[350475268,1737910278898,-593.51,0.00011635,2]
[350475269,1737910278909,-500.0,0.00011635,2]
[350475270,1737910278918,-500.0,0.00011635,2]
[350475271,1737910278928,-500.0,0.00011635,2]